bitfinex-derivatives/quotes_ETHF0:USTF0_20260306
["timestamp","ask_amount","ask_price","bid_price","bid_amount"]
[1772818924699,1.96228195,1956.9,1956.1,1.6796337]
[1772818925301,1.96832809,1956.9,1956.1,1.6796337]
[1772818927511,1.70676195,1957.3,1956.1,1.9352537]
[1772818927911,1.96226195,1957.0,1956.3,1.67536667]
[1772818928712,1.96712856,1957.0,1956.3,1.67536667]
[1772818930710,0.26036661,1957.0,1956.3,1.67536667]
[1772818933014,10.44305156,1957.7,1956.3,1.67536667]
[1772818933015,1.70676195,1957.3,1956.3,1.67536667]
[1772818933818,0.25545,1957.4,1956.3,1.93094667]
[1772818934016,0.26168253,1957.4,1956.3,1.93094667]
[1772818934214,1.96844448,1957.4,1956.3,1.93094667]
[1772818934414,0.26168253,1957.4,1956.3,1.93094667]
[1772818937914,1.96844448,1957.4,1956.3,1.93094667]
[1772818938116,0.2555,1957.1,1956.3,1.67536667]
[1772818938419,1.70676195,1957.3,1956.5,1.67536667]
[1772818938719,1.96223195,1957.2,1956.5,1.67536667]
[1772818940521,1.96228195,1956.9,1956.5,1.67536667]
[1772818940717,1.96228195,1956.9,1956.3,1.67536667]
[1772818940913,0.25557,1956.5,1956.3,42.47536667]
[1772818941113,1.96233195,1956.5,1956.1,17.8296337]
[1772818941513,1.96233195,1956.5,1956.1,40.80426703]
[1772818941720,1.96233195,1956.5,1956.1,42.4796337]
[1772818942025,0.25557,1956.5,1956.2,1.67536667]
[1772818943023,1.96233195,1956.5,1956.1,1.6796337]
[1772818943320,1.96233195,1956.5,1956.1,0.00426703]
[1772818943515,1.96233195,1956.5,1956.1,1.6796337]
[1772818944022,0.25557,1956.5,1956.1,1.6796337]
[1772818944619,0.25551,1957.0,1956.1,1.6796337]
[1772818944817,0.25551,1957.0,1956.1,1.9352437]
[1772818945215,1.96227195,1957.0,1956.1,1.6796337]
[1772818945922,0.25551,1957.0,1956.1,1.6796337]
[1772818946314,1.96227195,1957.0,1956.1,1.6796337]
[1772818947124,1.96227195,1957.0,1956.3,1.67536667]
[1772818947320,0.25551,1957.0,1956.3,1.67536667]
[1772818948026,0.25551,1957.0,1956.4,40.8]
[1772818948219,0.25551,1957.0,1956.5,1.67536667]
[1772818950217,0.25551,1957.0,1956.7,1.67536667]
[1772818950422,1.70676195,1957.2,1956.7,1.67536667]
[1772818950721,0.26168253,1957.4,1956.7,1.67536667]
[1772818951225,1.96844448,1957.4,1956.7,1.67536667]
[1772818951924,0.26168253,1957.4,1956.7,1.67536667]
[1772818953518,0.26168253,1957.4,1956.9,1.69728128]
[1772818953722,1.61678891,1957.5,1956.9,1.69728128]
[1772818954224,1.61678891,1957.5,1957.1,1.69728128]
[1772818954426,0.59990983,1957.8,1957.1,1.69728128]
[1772818954623,0.60551289,1957.8,1957.1,1.69728128]
[1772818954818,0.71366834,1957.7,1957.1,1.69728128]
[1772818955427,0.25546,1957.4,1957.1,1.69728128]
[1772818955927,0.71366834,1957.6,1957.1,1.69728128]
[1772818956429,0.25546,1957.4,1957.1,1.69728128]
[1772818956722,0.71366834,1957.6,1957.1,1.69728128]
[1772818956928,0.00560306,1957.8,1957.1,1.69728128]
[1772818957231,0.98018358,1957.8,1957.1,1.69728128]
[1772818958128,0.73077889,1957.7,1957.1,1.69728128]
[1772818958626,0.26100306,1957.8,1957.1,1.69728128]
[1772818958830,0.73077889,1958.1,1957.1,1.69728128]
[1772818959423,0.72855118,1958.4,1957.1,1.69728128]
[1772818959728,0.99634604,1958.2,1957.1,1.69728128]
[1772818959929,1.00258188,1958.2,1957.1,1.69728128]
[1772818960325,0.26158584,1958.2,1957.3,1.69728128]
[1772818960525,0.26158584,1958.2,1957.5,1.69728128]
[1772818960526,0.00623584,1958.2,1957.5,1.69728128]
[1772818960720,0.99619133,1958.2,1957.5,1.70087463]
[1772818960930,1.042481,1957.6,1957.0,1.69728128]
[1772818961227,1.297921,1957.5,1957.0,1.69728128]
[1772818961431,0.25544,1957.5,1957.0,1.69728128]
[1772818962031,0.25544,1957.5,1957.0,1.7018934]
[1772818962630,1.29209031,1957.5,1957.0,1.7018934]
[1772818962832,0.25544,1957.5,1957.0,1.7018934]
[1772818963732,1.28422016,1957.5,1957.0,1.7018934]
[1772818964027,0.25544,1957.5,1957.0,1.7018934]
[1772818964432,1.28395811,1957.5,1957.0,1.7018934]
[1772818965133,0.25544,1957.5,1957.0,1.7018934]
[1772818965529,1.02401607,1957.8,1957.0,1.7018934]
[1772818965730,1.27939607,1958.0,1957.0,1.7018934]
[1772818967927,0.25542,1957.6,1957.0,1.7018934]
[1772818968131,0.99000182,1957.7,1957.0,1.7018934]
[1772818968326,0.25537,1958.1,1957.0,1.7018934]
[1772818968527,0.99000182,1957.8,1957.0,1.7018934]
[1772818969333,0.98111615,1957.6,1957.1,16.362]
[1772818969529,1.23655615,1957.5,1957.1,18.05928128]
[1772818970335,1.2259322,1957.1,1956.8,1.69728128]
[1772818970534,0.25549,1957.1,1956.7,1.69728128]
[1772818970736,1.2259322,1957.1,1956.7,1.69728128]
[1772818971139,0.25549,1957.1,1956.7,1.69728128]
[1772818971330,0.25549,1957.1,1956.7,1.70263925]
[1772818971733,0.25545,1957.4,1956.7,1.70263925]
[1772818971930,0.94341673,1957.3,1956.7,1.70263925]
[1772818972134,0.94341673,1957.1,1956.7,1.70263925]
[1772818972538,1.19888673,1957.2,1956.7,1.70263925]
[1772818972739,0.93760733,1957.1,1956.7,1.70263925]
[1772818973142,0.2555,1957.0,1956.7,1.69728128]
[1772818973336,1.18673613,1957.0,1956.6,19.16764575]
[1772818974136,0.94380867,1956.9,1956.6,2.7992586]
[1772818974337,0.94380867,1956.9,1956.6,1.10197732]
[1772818975438,1.18092125,1957.0,1956.6,2.7992586]
[1772818976240,0.92158314,1956.9,1956.6,2.7992586]
[1772818976632,0.92158314,1956.9,1956.6,1.10197732]
[1772818976833,0.2555,1957.0,1956.7,1.63340644]
[1772818977937,1.1589372,1957.0,1956.6,2.73538376]
[1772818978645,1.1589372,1957.0,1956.7,1.63340644]
[1772818978846,0.2555,1957.0,1956.7,1.63340644]
[1772818980846,0.87214036,1957.4,1956.7,1.63340644]
[1772818981548,0.2555,1957.0,1956.7,1.63340644]
[1772818981748,6.28387,1957.5,1956.6,1.10197732]
[1772818981749,0.25553,1956.8,1956.6,1.10197732]
[1772818981948,0.25942943,1956.8,1956.6,2.73526338]
[1772818982247,0.91053603,1957.2,1956.7,1.63328606]
[1772818982948,1.1733023,1956.9,1956.6,1.10197732]
[1772818983246,0.25972507,1956.9,1956.6,2.73526338]
[1772818983450,0.25972507,1956.9,1956.6,1.10197732]
[1772818983642,0.25972507,1956.9,1956.7,1.63328606]
[1772818983842,6.28387,1957.5,1956.4,1.63328606]
[1772818983843,0.25551,1957.0,1956.4,1.63328606]
[1772818984043,0.25551,1957.5,1956.5,1.73045316]
[1772818984238,0.25551,1957.9,1956.7,1.63328606]
[1772818984445,0.25551,1957.9,1956.9,1.63328606]
[1772818984946,0.25932205,1957.9,1957.0,1.63328606]
[1772818985148,0.74035968,1957.9,1957.0,1.63328606]
[1772818985749,0.25534,1958.2,1957.1,1.63328606]
[1772818986043,0.47900647,1958.5,1957.4,1.63328606]
[1772818986442,7.03569536,1958.7,1957.4,1.63328606]
[1772818986443,0.25529,1958.7,1957.7,1.63328606]
[1772818986643,0.25529,1958.7,1957.9,1.63328606]
[1772818986850,0.26064484,1958.7,1957.9,1.63328606]
[1772818987346,0.26064484,1958.7,1958.0,1.63328606]
[1772818989949,0.26064484,1958.7,1958.2,1.63328606]
[1772818990346,0.65673706,1958.6,1958.2,1.63328606]
[1772818990950,0.65111599,1958.6,1958.2,1.63328606]
[1772818991151,0.65111599,1958.6,1958.1,1.63328606]
[1772818992050,0.26064484,1958.7,1958.1,1.63328606]
[1772818992252,0.64537385,1958.4,1957.6,1.63328606]
[1772818992451,0.64537385,1958.0,1957.6,1.63328606]
[1772818992655,0.25538,1957.9,1957.2,1.63328606]
[1772818993151,0.95438727,1957.9,1957.3,1.63328606]
[1772818993349,0.25538,1957.9,1957.3,1.63328606]
[1772818995653,0.8907011,1957.9,1957.3,1.63328606]
[1772818996554,0.25538,1957.9,1957.3,1.63328606]
[1772818998957,0.60171346,1958.3,1957.3,1.63328606]
[1772818999156,0.85709346,1958.4,1957.3,1.63328606]
[1772818999552,0.85709346,1958.3,1957.3,1.63328606]
[1772818999752,0.25534,1958.2,1957.3,1.63328606]
[1772819002761,1.11134626,1958.7,1957.3,1.63328606]
[1772819002955,1.36128142,1958.6,1957.3,1.63328606]
[1772819003160,1.36128142,1958.6,1957.5,1.63328606]
[1772819003360,1.36128142,1958.6,1957.7,1.63328606]
[1772819004256,0.25529,1958.6,1957.7,1.63328606]
[1772819008663,0.25529,1958.6,1957.9,1.63328606]
[1772819009866,0.00535484,1958.7,1957.9,1.63328606]
[1772819010968,0.25529,1958.6,1957.9,1.63328606]
[1772819012062,0.00535484,1958.7,1957.9,1.63328606]
[1772819012965,0.25529,1958.6,1957.9,1.63328606]
[1772819013268,0.25534,1958.3,1957.9,1.63328606]
[1772819013663,0.25534,1958.3,1957.9,1.67780655]
[1772819014267,0.26063484,1958.7,1957.9,1.67780655]
[1772819014464,0.26063484,1958.7,1957.8,57.484]
[1772819014465,1.61277218,1958.3,1957.8,40.8]
[1772819014664,1.61277218,1958.3,1957.8,1.67780655]
[1772819014866,1.61277218,1958.3,1957.8,1.32244846]
[1772819015161,0.25538,1958.0,1957.6,1.67780655]
[1772819016068,1.94626415,1958.0,1957.4,42.47780655]
[1772819016660,1.94626415,1958.0,1957.4,1.67780655]
[1772819018973,0.25543,1957.6,1957.2,1.67780655]
[1772819019173,1.93947075,1957.6,1957.2,1.67780655]
[1772819020276,1.93947075,1957.6,1957.1,1.67780655]
[1772819020477,1.93947075,1957.6,1956.9,16.7495953]
[1772819020678,1.94636415,1957.2,1956.9,0.0035953]
[1772819020877,1.94636415,1957.2,1956.7,1.67780655]
[1772819020878,1.95234754,1957.2,1956.7,1.67780655]
[1772819021677,1.94638415,1957.0,1955.9,1.67780655]
[1772819021877,1.94638415,1957.0,1956.1,1.67780655]
[1772819023082,1.94644415,1956.6,1955.9,1.68423426]
[1772819023873,1.94644415,1956.6,1956.1,1.67780655]
[1772819025077,1.94644415,1956.6,1956.0,40.8]
[1772819025979,1.69088415,1956.1,1955.7,1.11452343]
[1772819026281,1.69088415,1956.4,1955.8,1.67780655]
[1772819026577,1.69088415,1956.6,1955.8,1.67780655]
[1772819026781,1.69088415,1956.9,1956.0,1.67780655]
[1772819026972,1.69088415,1956.9,1956.0,1.68207445]
[1772819027177,0.00598339,1957.2,1956.0,1.93770445]
[1772819027473,1.94637415,1957.1,1956.0,1.93770445]
[1772819027673,1.94637415,1957.1,1956.0,1.68207445]
[1772819027871,0.25549,1957.1,1956.0,1.68207445]
[1772819028278,1.94637415,1957.1,1956.0,1.68207445]
[1772819029177,0.00598339,1957.2,1956.2,1.67780655]
[1772819029378,0.25543,1957.6,1956.0,0.0042679]
[1772819029379,0.25543,1957.6,1956.4,1.67780655]
[1772819029579,0.25543,1957.6,1956.6,1.67780655]
[1772819029779,6.28246,1958.0,1956.8,1.67780655]
[1772819029780,1.69088415,1958.0,1956.8,1.67780655]
[1772819030178,0.25536,1958.1,1956.8,1.67780655]
[1772819030376,0.26178075,1958.1,1956.8,1.67780655]
[1772819030577,1.9526649,1958.1,1956.8,1.67780655]
[1772819030979,8.2346249,1958.1,1956.8,1.67780655]
[1772819031280,1.94626415,1957.9,1956.8,1.67780655]
[1772819031781,1.94629415,1957.7,1956.9,42.47780655]
[1772819032081,1.94629415,1957.7,1957.0,1.67780655]
[1772819032272,1.69088415,1957.6,1957.0,1.67780655]
[1772819033780,1.94632415,1957.5,1957.0,1.67780655]
[1772819033979,1.94632415,1957.5,1956.9,40.8]
[1772819034182,1.94632415,1957.5,1957.0,1.67780655]
[1772819034685,1.69088415,1957.0,1956.3,1.67780655]
[1772819035480,0.25545,1957.4,1956.3,1.67780655]
[1772819035683,2.04546811,1957.4,1956.3,1.67780655]
[1772819036582,2.04542811,1957.7,1956.5,1.77975871]
[1772819036789,2.04542811,1957.7,1956.7,1.77975871]
[1772819036976,1.79001811,1957.9,1956.9,1.77975871]
[1772819037182,1.79643886,1958.1,1956.9,1.77975871]
[1772819040487,1.79643886,1958.1,1957.1,1.77975871]
[1772819041088,2.04538811,1958.0,1957.1,1.77975871]
[1772819041286,2.04549811,1957.2,1956.5,1.77975871]
[1772819041888,0.25548,1957.2,1956.7,1.66059188]
[1772819042095,1.69910507,1957.6,1956.7,1.66059188]
[1772819042287,0.25542,1957.7,1956.7,1.66059188]
[1772819042490,1.95452507,1957.7,1956.7,1.66059188]
[1772819047496,1.95452507,1957.7,1956.9,1.66059188]
[1772819048492,0.25542,1957.7,1956.9,1.66059188]
[1772819048893,1.95452507,1957.7,1956.9,1.66059188]
[1772819049495,0.25542,1957.7,1956.9,1.66059188]
[1772819050695,0.00642075,1958.1,1956.9,1.66059188]
[1772819050696,0.26178075,1958.1,1956.9,1.66059188]
[1772819050895,1.96088582,1958.1,1956.9,1.66059188]
[1772819053102,1.96088582,1958.1,1956.9,1.91609188]
[1772819053395,1.69910507,1958.7,1957.7,1.66059188]
[1772819053597,0.25526,1958.9,1957.9,1.66059188]
[1772819053792,1.95436507,1958.9,1957.9,1.66059188]
[1772819053997,1.95436507,1958.9,1958.1,1.66059188]
[1772819054597,1.96097817,1958.9,1958.1,1.66507339]
[1772819054798,0.2618731,1958.9,1958.1,1.66507339]
[1772819054994,1.96097817,1958.9,1958.1,1.66507339]
[1772819055496,0.0066131,1958.9,1958.1,1.66507339]
[1772819055904,0.0066131,1958.9,1958.1,0.00448151]
[1772819055905,1.95437507,1958.8,1958.1,0.00448151]
[1772819056096,1.95437507,1958.8,1958.1,1.66507339]
[1772819056299,0.25527,1958.8,1958.1,1.66507339]
[1772819056500,1.96096817,1958.9,1958.1,1.66507339]
[1772819056702,1.69910507,1958.6,1958.1,1.66507339]
[1772819057400,0.25528,1958.7,1958.1,1.66507339]
[1772819057600,1.95438507,1958.7,1958.1,1.66507339]
[1772819058194,0.0066131,1958.9,1958.1,1.66507339]
[1772819060104,1.69910507,1959.4,1958.3,1.66059188]
[1772819061004,1.95426507,1959.7,1958.5,1.66059188]
[1772819061200,1.69910507,1960.1,1958.7,1.66059188]
[1772819061805,1.69910507,1959.9,1958.9,1.66059188]
[1772819062002,1.69910507,1959.7,1958.9,1.66059188]
[1772819062403,1.69910507,1959.5,1958.9,1.66059188]
[1772819062609,1.69910507,1959.5,1959.0,18.62959188]
[1772819062907,1.69910507,1959.5,1959.1,1.66059188]
[1772819063103,1.95426507,1959.6,1959.1,1.66059188]
[1772819063404,1.69910507,1959.8,1959.1,1.66059188]
[1772819065301,0.25517,1959.5,1959.0,16.969]
[1772819065503,1.69910507,1959.4,1959.0,18.62959188]
[1772819065910,1.69910507,1959.2,1958.7,16.985]
[1772819066100,1.69910507,1959.2,1958.6,1.66059188]
[1772819066303,0.2552,1959.3,1958.6,1.66059188]
[1772819066605,0.2552,1959.3,1958.7,42.46059188]
[1772819066606,1.95430507,1959.3,1958.7,42.46059188]
[1772819066803,1.95430507,1959.3,1958.8,1.66059188]
[1772819067207,1.95430507,1959.3,1958.5,1.66059188]
[1772819067508,1.95430507,1959.3,1958.4,1.66059188]
[1772819067703,6.27838,1959.2,1958.2,1.66059188]
[1772819068009,1.95438507,1958.7,1958.1,16.78248151]
[1772819068309,1.95438507,1958.7,1958.2,40.8]
[1772819068606,1.69910507,1959.1,1958.3,1.66059188]
[1772819070308,6.27713,1959.6,1958.5,1.66059188]
[1772819070309,1.69910507,1959.3,1958.5,1.66059188]
[1772819070504,1.69910507,1959.3,1958.7,1.66059188]
[1772819070709,1.69910507,1959.3,1958.8,16.749]
[1772819071806,1.69910507,1959.3,1958.8,18.35064279]
[1772819072008,1.7259356,1959.1,1958.5,18.39264279]
[1772819072409,1.7259356,1959.1,1958.5,18.40664279]
[1772819072705,1.7259356,1958.9,1958.5,18.40664279]
[1772819072908,1.7259356,1958.9,1958.5,16.805]
[1772819073104,1.7259356,1959.1,1958.6,1.60164279]
[1772819073304,1.7259356,1959.3,1958.6,1.60164279]
[1772819073901,1.7259356,1959.1,1958.4,1.60164279]
[1772819074105,1.7259356,1958.7,1958.3,18.44764279]
[1772819074514,1.7259356,1959.0,1958.4,1.60164279]
[1772819074809,1.9811456,1959.2,1958.4,1.60164279]
[1772819079009,1.7259356,1958.8,1958.2,40.8]
[1772819079213,1.7259356,1958.8,1958.1,0.00448151]
[1772819079214,1.9812556,1958.4,1958.1,0.00448151]
[1772819079413,1.9812556,1958.4,1958.0,1.60164279]
[1772819080414,1.9877265,1958.4,1958.0,1.60799501]
[1772819081110,1.9877265,1958.4,1958.0,0.00635222]
[1772819081305,1.9877265,1958.4,1957.9,16.951]
[1772819081510,1.9877265,1958.4,1957.9,18.55264279]
[1772819081716,1.9877265,1958.4,1957.7,1.60164279]
[1772819081910,1.9877265,1958.4,1957.6,16.992]
[1772819082311,1.9877265,1958.4,1957.6,16.99619058]
[1772819083206,1.9877265,1958.4,1957.7,1.60164279]
[1772819084215,0.2617909,1958.4,1957.7,1.60164279]
[1772819084611,0.0064709,1958.4,1957.7,1.60164279]
[1772819084816,0.25526,1958.9,1957.9,1.60164279]
[1772819085212,1.9811956,1958.9,1957.9,1.60164279]
[1772819085414,0.25526,1958.9,1957.9,1.60164279]
[1772819085618,0.25526,1958.9,1958.1,1.60164279]
[1772819085913,0.25526,1958.9,1958.0,2.81351647]
[1772819085914,1.7259356,1959.1,1958.3,1.60164279]
[1772819086119,6.27751,1959.5,1958.3,1.60164279]
[1772819086120,1.7259356,1958.9,1958.3,1.60164279]
[1772819086419,1.7259356,1958.9,1958.4,42.40164279]
[1772819086716,1.9811756,1959.0,1958.5,1.60164279]
[1772819086918,0.25978465,1959.0,1958.5,1.60164279]
[1772819087512,0.00454465,1959.0,1958.5,1.60164279]
[1772819088208,0.25525,1958.9,1958.5,1.60164279]
[1772819088517,0.25525,1958.9,1958.6,1.60164279]
[1772819088712,1.9811856,1958.9,1958.5,18.67664279]
[1772819089421,0.00454465,1959.0,1958.6,1.60164279]
[1772819089612,1.7259356,1959.2,1958.6,1.60164279]
[1772819089816,0.25523,1959.1,1958.5,18.67664279]
[1772819090020,1.9811656,1959.1,1958.6,1.60164279]
[1772819090221,1.9811656,1959.1,1958.5,17.075]
[1772819090623,1.98704889,1959.1,1958.5,17.075]
[1772819090920,1.98704889,1959.1,1958.3,18.70664279]
[1772819091120,1.98704889,1959.1,1958.4,1.60164279]
[1772819092117,1.7259356,1958.5,1958.1,20.82588531]
[1772819092322,1.9811356,1959.3,1958.5,1.60164279]
[1772819092522,1.9811356,1959.3,1958.6,59.52564279]
[1772819092714,1.9811356,1959.3,1958.7,1.60164279]
[1772819093114,1.7259356,1959.3,1958.7,1.60164279]
[1772819093318,1.72965828,1959.3,1958.7,1.60164279]
[1772819093517,1.72965828,1959.3,1958.6,40.8]
[1772819093717,1.7259356,1959.1,1958.6,40.8]
[1772819094120,1.7259356,1959.1,1958.6,42.40164279]
[1772819095325,1.7259356,1959.1,1958.7,1.60164279]
[1772819096721,0.25521,1959.2,1958.7,1.60164279]
[1772819096922,0.25516,1959.7,1958.9,1.78514746]
[1772819097128,0.25516,1959.7,1959.1,1.78514746]
[1772819098026,1.87774467,1960.1,1959.1,1.79005341]
[1772819098222,0.00579025,1959.7,1959.1,1.79005341]
[1772819100531,1.87774467,1960.0,1959.1,1.79005341]
[1772819100834,2.13283467,1960.2,1959.1,1.79005341]
[1772819101626,2.13801523,1960.2,1959.1,1.79005341]
[1772819102330,0.00518056,1960.2,1959.3,1.72769666]
[1772819102540,1.7451588,1960.6,1959.6,1.72769666]
[1772819103031,1.7451588,1960.6,1959.7,42.52769666]
[1772819103431,1.7451588,1960.4,1959.7,40.8]
[1772819103834,1.7451588,1960.2,1959.7,40.8]
[1772819104035,2.0002588,1960.1,1959.4,18.96569666]
[1772819104236,1.7451588,1960.5,1959.5,1.72769666]
[1772819104437,1.7451588,1960.3,1959.6,40.8]
[1772819104837,1.7451588,1960.3,1959.6,42.52769666]
[1772819105538,1.7451588,1960.3,1959.7,1.72769666]
[1772819105735,1.7451588,1960.5,1959.7,1.72769666]
[1772819105940,1.7451588,1961.0,1959.9,1.72769666]
[1772819106734,2.0001488,1961.0,1959.9,1.72769666]
[1772819107140,2.0060604,1961.0,1959.9,1.72769666]
[1772819108536,0.25501,1960.8,1959.9,1.72769666]
[1772819108737,1.7451588,1960.7,1959.9,1.72769666]
[1772819111044,1.7451588,1960.3,1959.5,17.296]
[1772819111234,1.7451588,1960.3,1959.5,1.72769666]
[1772819111743,1.7451588,1960.3,1959.6,1.72769666]
[1772819114545,1.7451588,1960.3,1959.5,40.8]
[1772819114846,1.80477158,1960.1,1959.5,40.8]
[1772819115247,1.80477158,1960.1,1959.5,42.57525706]
[1772819116050,1.80477158,1959.9,1959.1,17.33390595]
[1772819116244,1.80477158,1959.7,1959.1,1.78016301]
[1772819116450,1.80477158,1960.0,1959.1,1.78016301]
[1772819116644,1.80477158,1960.0,1959.2,1.77525706]
[1772819117049,1.80477158,1960.2,1959.2,1.77525706]
[1772819117250,1.80477158,1960.2,1959.4,1.77525706]
[1772819117450,1.80477158,1960.2,1959.6,1.77525706]
[1772819117650,1.80477158,1960.7,1959.6,1.77525706]
[1772819118748,0.0059116,1961.0,1959.8,1.77525706]
[1772819118952,1.80477158,1960.9,1959.8,1.77525706]
[1772819121357,0.0059116,1961.0,1960.0,1.77525706]
[1772819121555,1.81068318,1961.0,1960.2,1.77525706]
[1772819122153,1.81068318,1961.0,1960.3,42.57525706]
[1772819122353,0.0059116,1961.0,1960.4,1.77525706]
[1772819122555,1.81068318,1961.0,1960.4,1.77525706]
[1772819123759,1.81068318,1961.0,1959.4,12.92088436]
[1772819123760,1.80477158,1960.4,1959.8,1.77525706]
[1772819124257,1.80477158,1960.2,1959.7,19.14925706]
[1772819124656,1.80477158,1960.2,1959.8,1.77525706]
[1772819125158,1.80477158,1960.2,1959.6,1.77525706]
[1772819125357,1.80477158,1960.0,1959.2,1.77525706]
[1772819125961,1.80477158,1959.8,1959.1,1.78016301]
[1772819126162,1.80477158,1959.8,1959.1,0.00490595]
[1772819126658,1.80477158,1959.6,1959.1,0.00490595]
[1772819126850,0.00448889,1959.6,1959.1,1.78016301]
[1772819127050,1.80477158,1960.5,1959.3,1.77525706]
[1772819127254,1.80477158,1960.5,1959.5,1.77525706]
[1772819127450,1.80477158,1960.8,1959.7,1.77525706]
[1772819127654,2.38026294,1960.7,1959.7,1.77525706]
[1772819127853,1.80477158,1960.7,1959.7,1.77525706]
[1772819128059,1.81084148,1960.7,1959.7,1.77525706]
[1772819128955,1.80477158,1960.5,1959.7,1.77525706]
[1772819130655,1.81084148,1960.7,1959.7,1.77525706]
[1772819131161,2.06586148,1960.7,1959.7,1.77525706]
[1772819133159,1.81084148,1960.7,1959.7,1.77525706]
[1772819134357,1.81084148,1960.7,1959.4,17.64519]
[1772819134358,0.0060699,1960.7,1959.9,1.70636022]
[1772819135056,0.0060699,1960.7,1960.1,1.70636022]
[1772819135863,1.75237199,1961.4,1960.3,1.70636022]
[1772819136763,1.75602096,1961.4,1960.3,1.70636022]
[1772819137766,1.75602096,1961.4,1960.5,1.70636022]
[1772819137966,1.75602096,1961.4,1960.5,1.71138416]
[1772819138363,1.75602096,1961.4,1960.6,1.70636022]
[1772819140071,1.75237199,1961.2,1960.5,1.71138416]
[1772819140462,1.75237199,1961.2,1960.5,0.00502394]
[1772819140666,1.75237199,1961.0,1960.5,0.00502394]
[1772819141266,1.75237199,1961.0,1960.5,1.71138416]
[1772819141872,1.75237199,1961.0,1960.2,40.8]
[1772819142072,1.75237199,1960.8,1960.1,1.70636022]
[1772819142567,1.75237199,1960.8,1960.1,42.50636022]
[1772819142867,1.75237199,1960.8,1960.2,1.70636022]
[1772819143267,1.75237199,1960.8,1960.1,0.00583592]
[1772819143871,1.75237199,1960.6,1960.1,0.00583592]
[1772819144073,1.75237199,1960.6,1960.1,1.71219614]
[1772819144873,1.75237199,1960.6,1960.1,0.00583592]
[1772819145474,1.75237199,1960.6,1960.1,1.71219614]
[1772819145670,1.75237199,1960.6,1960.1,0.00583592]
[1772819146967,1.75237199,1960.4,1959.7,1.70636022]
[1772819147271,0.25507,1960.3,1959.5,1.70636022]
[1772819147470,1.75237199,1960.3,1959.5,1.70636022]
[1772819147775,1.75237199,1960.3,1959.3,1.70636022]
[1772819147970,1.75237199,1960.3,1959.4,3.77138434]
[1772819148176,1.75237199,1960.3,1959.5,1.70636022]
[1772819148570,1.75237199,1960.3,1959.5,42.50636022]
[1772819148767,0.25506,1960.4,1959.4,2.06502412]
[1772819148768,1.75237199,1960.1,1959.4,2.06502412]
[1772819148971,1.75237199,1959.9,1959.4,0.75490717]
[1772819149172,1.75652307,1959.9,1959.4,0.44927985]
[1772819149778,1.75652307,1959.9,1959.4,2.15564007]
[1772819150868,0.00415108,1959.9,1959.5,1.70636022]
[1772819151273,1.75652307,1959.9,1959.4,0.44927985]
[1772819151472,1.75652307,1959.9,1959.4,2.15564007]
[1772819151978,1.75652307,1959.9,1959.4,0.44927985]
[1772819153177,1.75652307,1959.9,1959.4,2.15564007]
[1772819153379,1.75652307,1959.9,1959.4,0.44927985]
[1772819153974,1.75237199,1959.7,1959.1,2.09953947]
[1772819154169,1.75237199,1959.7,1958.9,1.70636022]
[1772819154874,1.75237199,1959.7,1958.9,1.71083357]
[1772819155076,1.75652307,1959.9,1958.9,1.71083357]
[1772819155879,0.00415108,1959.9,1959.3,1.74616626]
[1772819156076,1.63395461,1960.5,1959.4,1.74616626]
[1772819157279,1.63845028,1960.5,1959.4,1.74616626]
[1772819157480,0.00449567,1960.5,1959.6,1.74616626]
[1772819158380,1.63395461,1960.8,1959.8,1.74616626]
[1772819158679,1.63395461,1960.8,1960.0,1.74616626]
[1772819159472,1.64033512,1960.8,1960.0,1.74616626]
[1772819159679,0.00638051,1960.8,1960.0,1.74616626]
[1772819160183,1.64033512,1960.8,1960.1,40.8]
[1772819160374,0.25502,1960.7,1959.9,17.407]
[1772819160573,1.63395461,1960.7,1960.0,1.74616626]
[1772819160775,0.00638051,1960.8,1960.0,1.74616626]
[1772819161181,1.64033512,1960.8,1960.0,1.74616626]
[1772819161578,0.00638051,1960.8,1960.0,1.74616626]
[1772819162284,0.00638051,1960.8,1960.2,1.73484785]
[1772819162789,1.66078252,1961.2,1960.2,1.73484785]
[1772819163892,1.66674085,1961.2,1960.2,1.73484785]
[1772819165589,1.66078252,1961.0,1960.2,1.73484785]
[1772819165786,1.66078252,1960.6,1959.6,19.14284785]
[1772819165987,1.66078252,1960.4,1959.6,1.73484785]
[1772819166395,1.66078252,1960.4,1959.4,1.73484785]
[1772819166992,1.66078252,1960.8,1959.4,1.73484785]
[1772819167793,1.66078252,1960.4,1959.4,1.73484785]
[1772819169899,1.66078252,1960.6,1959.4,1.73484785]
[1772819170089,1.66078252,1960.6,1959.8,1.73484785]
[1772819170295,1.66078252,1960.9,1960.0,1.73484785]
[1772819170993,1.66078252,1961.1,1960.2,1.73484785]
[1772819171791,1.66078252,1961.1,1960.4,1.73484785]
[1772819171994,1.66078252,1961.1,1960.4,1.74037983]
[1772819173093,0.00595833,1961.2,1960.4,19.17637983]
[1772819173403,1.66674085,1961.2,1960.5,1.73484785]
[1772819173805,0.00595833,1961.2,1960.5,1.73484785]
[1772819174102,1.66078252,1961.6,1960.5,1.73484785]
[1772819174894,0.25486,1962.0,1960.7,1.73484785]
[1772819174895,1.66078252,1961.9,1960.7,1.73484785]
[1772819175101,1.66525187,1961.9,1960.7,1.73484785]
[1772819175493,1.66525187,1961.9,1960.6,0.25503]
[1772819175494,1.66525187,1961.9,1960.9,1.73484785]
[1772819175696,1.66525187,1961.9,1961.1,1.73484785]
[1772819176503,0.00446935,1961.9,1961.1,1.73484785]
[1772819177802,1.66525187,1961.9,1961.0,1.73484785]
[1772819178006,1.66078252,1961.7,1960.8,1.73484785]
[1772819178506,1.66078252,1961.7,1960.8,42.53484785]
[1772819179102,1.66078252,1961.7,1960.9,1.73484785]
[1772819181307,1.66078252,1961.5,1960.5,1.73484785]
[1772819181702,1.66078252,1961.5,1960.6,1.73484785]
[1772819182099,1.66078252,1961.3,1960.4,0.00553198]
[1772819182303,0.25495,1961.2,1960.4,0.00553198]
[1772819182609,1.66078252,1961.1,1960.4,0.00553198]
[1772819182804,1.66078252,1961.6,1960.4,1.74037983]
[1772819183011,1.66078252,1961.6,1960.5,1.73484785]
[1772819183605,1.66078252,1961.8,1960.7,1.73484785]
[1772819184407,1.66078252,1961.8,1960.9,1.73484785]
[1772819184605,0.00446935,1961.9,1960.9,1.73484785]
[1772819184906,0.00446935,1961.9,1961.1,1.73484785]
[1772819185101,1.66078252,1962.6,1961.3,1.73484785]
[1772819185306,1.66078252,1962.6,1961.5,1.73484785]
[1772819186010,2.643264,1962.9,1961.7,1.73484785]
[1772819186205,1.91553252,1962.8,1961.7,1.73484785]
[1772819188209,1.91553252,1962.8,1961.9,1.73484785]
[1772819188513,1.91553252,1962.8,1961.9,1.73876914]
[1772819188911,1.91553252,1962.8,1961.9,0.00392129]
[1772819190320,1.66078252,1962.3,1961.3,1.73484785]
[1772819190519,0.2548,1962.4,1961.0,1.73484785]
[1772819190520,1.66078252,1962.1,1961.0,1.73484785]